fUST/lending_fUST_20240104
["ID","MTS","AMOUNT","RATE_DAILY","PERIOD"]
[310107414,1704346238369,-82991.6536766,0.00016104,2]
[310107417,1704346238378,-154.8915759,0.00016104,2]
[310107419,1704346238387,-205.52137598,0.00016104,2]
[310107421,1704346238397,-1521.43996092,0.00016104,2]
[310107422,1704346238407,-178.30976608,0.00016104,2]
[310107424,1704346238418,-154.8915759,0.00016104,2]
[310107426,1704346238428,-166.49187593,0.00016104,2]
[310107429,1704346238437,-5210.9786353,0.00016104,2]
[310107431,1704346238447,-200.0,0.00017709,2]
[310107433,1704346238457,-2090.15137702,0.00018,2]
[310107434,1704346238467,-674.72349765,0.000189,2]
[310107437,1704346238480,-1063.40426665,0.000189,2]
[310107439,1704346238489,-279.88248393,0.00019,2]
[310107441,1704346238499,-181.85414,0.00019178,2]
[310107443,1704346238509,-174.850834,0.00019178,2]
[310107445,1704346238519,-280.0,0.0001948,2]
[310107447,1704346238530,-2990.69030985,0.0002,2]
[310107449,1704346238540,-1193.60075025,0.0002,2]
[310107451,1704346238549,-154.8915759,0.0002,2]
[310107453,1704346238559,-676.09716813,0.0002,2]
[310107455,1704346238569,-273.22384269,0.0002,2]
[310107457,1704346238579,-235.68021843,0.0002,2]
[310107459,1704346238588,-4403.86395702,0.000209,2]
[310107461,1704346238601,-31286.6806684,0.000209,2]
[310107463,1704346238611,-607.22565239,0.00021,2]
[310107465,1704346238621,-1874.39502932,0.00021,2]
[310107467,1704346238631,-18460.5490917,0.00021,2]
[310107469,1704346238641,-300.0,0.00021426,2]
[310107471,1704346238651,-2076.65490248,0.00021426,2]
[310107473,1704346238661,-331.77142442,0.00021915,2]
[310107475,1704346238671,-402.68891606,0.00021915,2]
[310107477,1704346238682,-156.31535578,0.00021915,2]
[310107479,1704346238692,-500.0,0.00021917,2]
[310107481,1704346238703,-500.0,0.00021917,2]
[310107483,1704346238714,-221.83677077,0.00021917,2]
[310107485,1704346238725,-341.22697094,0.00021917,2]
[310107487,1704346238734,-288.7347083,0.00021917,2]
[310107489,1704346238744,-166.666666,0.00021918,2]
[310107491,1704346238755,-3909.94605772,0.00022,2]
[310107493,1704346238765,-2445.66556949,0.00022,2]
[310107496,1704346238779,-2406.1764529,0.00022,2]
[310107716,1704346246215,-1234.16000342,0.000161,2]
[310107717,1704346246225,-432.7535313,0.00016101,2]
[310107718,1704346246235,-590.70052117,0.00016102,2]
[310107719,1704346246246,-322.02364471,0.00016102,2]
[310107720,1704346246258,-58.38810302,0.00022,2]
[310107721,1704346246268,-9433.39849873,0.00023,2]
[310107757,1704346788270,200.0,0.00022834,7]
[310107758,1704347087241,280.0,0.00022804,7]
[310107767,1704347379279,233.697544,0.00015746,2]
[310107851,1704347438473,-7934.07626088,0.00016732,2]
[310107853,1704347438483,-924.44826457,0.00016732,2]
[310107855,1704347438492,-974.77216394,0.00016733,2]
[310107857,1704347438501,-605.93747779,0.00016733,2]
[310107859,1704347438511,-343.52308259,0.00016733,2]
[310107861,1704347438520,-154.87609912,0.00016733,2]
[310107863,1704347438530,-322.45088906,0.00016734,2]
[310107865,1704347438539,-553.40007214,0.00016734,2]
[310107867,1704347438548,-154.87609912,0.00016734,2]
[310107869,1704347438558,-4782.2215732,0.00016734,2]
[310107872,1704347438568,-154.87609912,0.00016735,2]
[310107874,1704347438577,-1756.82687076,0.00016735,2]
[310107876,1704347438587,-1464.56216826,0.00016735,2]
[310107878,1704347438596,-2027.50790733,0.00016736,2]
[310107880,1704347438606,-264.53886499,0.00016737,2]
[310107883,1704347438615,-360.25452609,0.00016737,2]
[310107886,1704347438624,-154.87609912,0.00016737,2]
[310107897,1704347438691,-683.13879405,0.00016737,2]
[310107901,1704347438721,-1573.84262865,0.00016738,2]
[310107904,1704347438730,-413.60737258,0.00016738,2]
[310107907,1704347438740,-260.59804667,0.00016739,2]
[310107910,1704347438749,-1678.7663531,0.00016739,2]
[310107912,1704347438758,-15859.56727457,0.00016739,2]
[310107915,1704347438767,-276.96518606,0.0001674,2]
[310107918,1704347438776,-17126.70166126,0.00016753,2]
[310107920,1704347438788,-1685.09432451,0.00016753,2]
[310107922,1704347438800,-2828.00063051,0.00016753,2]
[310107925,1704347438811,-3260.20338372,0.00016753,2]
[310107927,1704347438821,-871.39988609,0.00017235,2]
[310107928,1704347438833,-1171.19863995,0.00017799,2]
[310107930,1704347438843,-245.69273221,0.000178,2]
[310107932,1704347438852,-7544.16505711,0.00017801,2]
[310107934,1704347438861,-5938.79112663,0.00017801,2]
[310107936,1704347438872,-200.0,0.00018413,2]
[310107937,1704347438881,-3228.28216112,0.000189,2]
[310107939,1704347438891,-181.85414,0.00019762,2]
[310107942,1704347438900,-242.17543569,0.00019779,2]
[310107943,1704347438910,-641.96499442,0.00019779,2]
[310107945,1704347438921,-164.65816911,0.00019779,2]
[310107947,1704347438931,-166.32510416,0.00019779,2]
[310107950,1704347438941,-230.12748224,0.00019779,2]
[310107952,1704347438952,-1584.80241164,0.00019779,2]
[310107954,1704347438962,-520.2185,0.00019779,2]
[310107956,1704347438972,-321.94449774,0.00019779,2]
[310107957,1704347438981,-2692.64632163,0.00019779,2]
[310107959,1704347438990,-1019.46116191,0.00019779,2]
[310107961,1704347439000,-284.52323119,0.00019779,2]
[310107963,1704347439011,-399.38718748,0.00019779,2]
[310107965,1704347439020,-466.12469227,0.00019779,2]
[310107967,1704347439030,-559.68125324,0.00019779,2]
[310107969,1704347439039,-309.6903097,0.00019779,2]
[310107971,1704347439050,-590.516407,0.00019779,2]
[310107974,1704347439060,-2997.40556678,0.00019779,2]
[310107975,1704347439069,-129.42513753,0.00019779,2]
[310107980,1704347439103,226.0804154,0.00015739,2]
[310107990,1704347440247,-323.79737193,0.00019779,2]
[310107991,1704347440256,-586.04748878,0.00019779,2]
[310107992,1704347440266,-191.46068419,0.00019779,2]
[310107993,1704347440275,-166.16362772,0.0001978,2]
[310107994,1704347440285,-924.10071275,0.0001978,2]
[310108027,1704347441757,-873.94452657,0.00016731,2]
[310108029,1704347441766,-212.67163283,0.00016731,2]
[310108031,1704347441776,-260.59804667,0.00016731,2]
[310108033,1704347441785,-1584.26915139,0.0001978,2]
[310108034,1704347441794,-259.53021366,0.0002,2]
[310108036,1704347441806,-13.69362903,0.0002,2]
[310108037,1704347441816,-1193.60075025,0.0002,2]
[310108038,1704347441825,-1346.92157567,0.0002,2]
[310108114,1704347492584,150.8642222,0.00028873,120]
[310108117,1704347608139,-203.85688046,0.00017102,2]
[310108118,1704347608173,-10479.76281548,0.00018895,2]
[310108119,1704347608205,-154.87609912,0.00018895,2]
[310108120,1704347608238,-154.87609912,0.00018896,2]
[310108121,1704347608271,-2027.50790733,0.00018896,2]
[310108122,1704347608303,-683.13879405,0.00018896,2]
[310108123,1704347608337,-2869.44000926,0.00018896,2]
[310108124,1704347608373,-413.60737258,0.00018897,2]
[310108125,1704347608405,-154.87609912,0.00018897,2]
[310108126,1704347608439,-154.87609912,0.00018897,3]
[310108127,1704347608471,-343.52308259,0.00018897,2]
[310108128,1704347608589,-1171.21791384,0.00018898,2]
[310108129,1704347608624,-3568.13361388,0.000189,2]
[310108130,1704347700661,-673.68890666,0.0001631,2]
[310108131,1704347700698,-154.87609912,0.00017599,3]
[310108132,1704347700733,-154.84515385,0.000176,2]
[310108133,1704347766273,-413.60737258,0.00017995,2]
[310108134,1704347766308,-154.87609912,0.00017996,3]
[310108135,1704347786832,48.10636867,0.00017996,3]
[310108136,1704347807282,-976.0149282,0.00017599,2]
[310108137,1704347807316,-449.64218695,0.000176,5]
[310108138,1704347834478,-2027.50790733,0.00017599,2]
[310108139,1704347834518,-154.87609912,0.00017599,2]
[310108140,1704347834557,-976.0149282,0.000176,5]
[310108141,1704347885586,150.8642222,0.00028445,120]
[310108146,1704348266531,150.8642222,0.0002861,120]
[310108164,1704348569465,-212.67163283,0.00016176,2]
[310108165,1704348569492,-340.98084564,0.00016177,2]
[310108166,1704348594632,-154.87609912,0.00016176,2]
[310108167,1704348594660,-540.05416041,0.00016177,2]
[310108168,1704348594699,-78.66955886,0.00016177,2]
[310108169,1704348594727,-616.26070067,0.00016177,2]
[310108202,1704348632618,-192.70979426,0.00016177,2]
[310108204,1704348632631,-154.87609912,0.00016177,2]
[310108206,1704348632640,-458.80081369,0.00016177,2]
[310108208,1704348632653,-249.58695295,0.00016177,2]
[310108210,1704348632662,-508.50377759,0.00016195,2]
[310108212,1704348632671,-166.83553989,0.00016196,2]
[310108214,1704348632680,-212.61910187,0.00016689,2]
[310108216,1704348632689,-154.87609912,0.00016689,2]
[310108218,1704348632699,-154.8915759,0.0001669,2]
[310108220,1704348632708,-2872.48695268,0.00016691,2]
[310108307,1704348634703,-7257.45862412,0.00016691,2]
[310108308,1704348634712,-233.697544,0.00017017,2]
[310108309,1704348634721,-307.03838679,0.00017343,2]
[310108310,1704348634731,-24900.0,0.00017344,2]
[310108311,1704348634741,-106.76973045,0.00017996,3]
[310108312,1704348634750,-1746.22206017,0.00018649,2]
[310108313,1704348634760,-3265.7514171,0.000189,2]
[310108314,1704348634770,-174.850834,0.00019178,2]
[310108315,1704348634779,-331.9510453,0.00019795,2]
[310108316,1704348634789,-282.67632975,0.00019896,2]
[310108317,1704348634798,-10707.75,0.00019988,3]
[310108318,1704348634808,-1018.6437214,0.00019989,2]
[310108319,1704348634817,-200.0,0.00019996,2]
[310108320,1704348634827,-403.98760198,0.00019996,2]
[310108321,1704348634836,-343.15093823,0.00019996,2]
[310108322,1704348634846,-218.42256092,0.00019997,2]
[310108323,1704348634855,-4294.60336997,0.00019997,2]
[310108324,1704348634865,-508.37039886,0.00019997,2]
[310108325,1704348634874,-13669.99879992,0.00019998,2]
[310108326,1704348634884,-155.87853785,0.00019999,2]
[310108327,1704348634893,-689.60286972,0.0002,2]
[310108367,1704348638753,-954.16586446,0.0002,2]
[310108368,1704348638763,-676.09716813,0.0002,2]
[310108369,1704348638773,-268.6781661,0.0002,2]
[310108370,1704348638782,-858.0045708,0.0002,2]
[310108371,1704348638792,-2799.90774105,0.0002,2]
[310108372,1704348638801,-273.22384269,0.0002,2]
[310108373,1704348638810,-235.68021843,0.0002,2]
[310108374,1704348638819,-1978.78623634,0.0002,2]
[310108375,1704348638828,-321.67440862,0.0002,2]
[310108376,1704348638838,-154.87609912,0.0002,2]
[310108377,1704348638847,-1967.652867,0.0002,2]
[310108378,1704348638856,-1967.652867,0.0002,2]
[310108379,1704348638865,-1967.652867,0.0002,2]
[310108380,1704348638874,-1967.652867,0.0002,2]
[310108381,1704348638883,-1967.652867,0.0002,2]
[310108382,1704348638892,-973.51361537,0.00020522,2]
[310108383,1704348638902,-166.666666,0.00021918,2]
[310108384,1704348638911,-4910.23012541,0.00022,2]
[310108385,1704348638919,-3909.94605772,0.00022,2]
[310108386,1704348638929,-309.62844586,0.00022236,2]
[310108387,1704348638938,-154.90705577,0.00022237,2]
[310108388,1704348638947,-166.666666,0.00022431,2]
[310108389,1704348638956,-1061.07446859,0.00022604,2]
[310108390,1704348638968,-429.17056641,0.00022604,2]
[310108391,1704348638977,-4255.22011025,0.00022704,2]
[310108392,1704348638988,-5278.76171055,0.00022704,2]
[310108401,1704348639604,-51722.58877589,0.00022704,2]
[310108402,1704348639614,-200.632335,0.00022704,2]
[310108403,1704348639623,-200.632335,0.00022704,2]
[310108404,1704348639632,-2031.17478188,0.000228,2]
[310108405,1704348639641,-162.44234547,0.000228,2]
[310108406,1704348639650,-524.73174263,0.00022801,2]
[310108407,1704348639659,-466.91337894,0.00022801,2]
[310108408,1704348639669,-630.9202282,0.00022801,2]
[310108409,1704348639677,-208.59226606,0.00022801,2]
[310108410,1704348639686,-200.632335,0.00022802,2]
[310108411,1704348639696,-200.632335,0.00022802,2]
[310108412,1704348639705,-280.71548438,0.00022802,2]
[310108413,1704348639714,-553.25941224,0.00022802,2]
[310108414,1704348639723,-4778.80385,0.00022802,2]
[310108415,1704348639733,-245.49558969,0.00022802,2]
[310108416,1704348639742,-154.93801551,0.00022802,2]
[310108417,1704348639752,-605.59391229,0.00022802,2]
[310108418,1704348639761,-264.42234209,0.00022802,2]
[310108419,1704348639771,-7930.33497978,0.00022802,2]
[310108420,1704348639781,-362.02458655,0.00022802,2]
[310108421,1704348639790,-435.80978753,0.00022802,2]
[310108422,1704348639802,-873.49963849,0.00022802,2]
[310108423,1704348639811,-173.47276349,0.00022802,2]
[310108424,1704348639821,-1572.79068013,0.00022802,2]
[310108425,1704348639831,-1484.96822781,0.00022802,2]
[310108426,1704348639841,-923.92462609,0.00022802,2]
[310108427,1704348639850,-268.66139203,0.00022802,2]
[310108428,1704348639859,-15414.98686248,0.00022803,2]
[310108429,1704348639869,-151.0,0.00022803,2]
[310108430,1704348639879,-370.12415487,0.00022804,2]
[310108431,1704348639888,-95006.56603193,0.00022804,2]
[310108432,1704348639898,-346.63904701,0.00022804,2]
[310108433,1704348639908,-176.37293722,0.00022804,2]
[310108434,1704348639917,-155.03911867,0.00022804,2]
[310108435,1704348639927,-265.70132317,0.00022804,2]
[310108436,1704348639938,-309.61298454,0.00022804,2]
[310108437,1704348639947,-154.87609912,0.00022804,2]
[310108438,1704348639957,-296.9965682,0.00022804,2]
[310108439,1704348639967,-151.0,0.00022804,2]
[310108441,1704348639977,-200.632335,0.00022804,2]
[310108443,1704348639987,-200.632335,0.00022804,2]
[310108444,1704348639996,-166.666666,0.00022944,2]
[310108445,1704348640006,-468.33234318,0.00023,2]
[310108446,1704348640016,-166.666666,0.00023456,2]
[310108447,1704348640026,-3265.7514171,0.000239,2]
[310108448,1704348640035,-166.666666,0.00023969,2]
[310108449,1704348640047,-7171.43446917,0.0002399,2]
[310108450,1704348640056,-1530.9193307,0.00023998,2]
[310108451,1704348640065,-2290.19190816,0.00024,2]
[310108452,1704348640075,-166.666666,0.00024482,2]
[310108453,1704348640084,-1792.51371803,0.00024857,2]
[310108454,1704348640093,-4704.77366573,0.00025,2]
[310108455,1704348640102,-3000.0,0.00025,2]
[310108456,1704348640162,-613.10329314,0.00025,2]
[310108457,1704348640171,-151.0,0.00025,2]
[310108458,1704348640180,-2481.77043544,0.00025,2]
[310108459,1704348640190,-2000.0,0.00025,2]
[310108460,1704348640199,-154.87609912,0.00025,2]
[310108461,1704348640208,-200.632335,0.00025,2]
[310108462,1704348640217,-200.632335,0.00025,2]
[310108463,1704348640227,-2000.0,0.0002501,2]
[310108464,1704348640236,-1490.24503498,0.00025019,2]
[310108465,1704348640246,-2000.0,0.0002502,2]
[310108466,1704348640255,-2000.0,0.0002503,2]
[310108467,1704348640264,-2000.0,0.0002504,2]
[310108468,1704348640273,-2000.0,0.0002505,2]
[310108469,1704348640282,-2000.0,0.0002506,2]
[310108470,1704348640292,-2000.0,0.0002507,2]
[310108471,1704348640301,-200.632335,0.0002507,2]
[310108472,1704348640310,-200.632335,0.0002507,2]
[310108473,1704348640319,-2000.0,0.0002508,2]
[310108474,1704348640328,-716.3678328,0.0002508,2]
[310108475,1704348640337,-2000.0,0.0002509,2]
[310108476,1704348640346,-151.0,0.0002509,2]
[310108477,1704348640356,-1576.20853557,0.00025097,2]
[310108478,1704348640366,-2000.0,0.000251,2]
[310108479,1704348640375,-500.0,0.00025106,4]
[310108480,1704348640385,-160.2480735,0.00025106,4]
[310108481,1704348640398,-500.0,0.00025106,4]
[310108482,1704348640409,-578.24405056,0.00025106,4]
[310108483,1704348640419,-450.40414064,0.00025106,4]
[310108484,1704348640429,-388.00051048,0.00025106,4]
[310108485,1704348640439,-500.0,0.00025106,4]
[310108486,1704348640449,-500.0,0.00025106,4]
[310108487,1704348640460,-410.76714297,0.00025106,4]
[310108488,1704348640469,-46318.93847858,0.00025107,2]
[310108489,1704348640479,-151.0,0.00025107,2]
[310108490,1704348640493,-200.632335,0.00025107,2]
[310108491,1704348640503,-200.632335,0.00025107,2]
[310108492,1704348640514,-2000.0,0.0002511,2]
[310108493,1704348640524,-2000.0,0.0002512,2]
[310108494,1704348640533,-2000.0,0.0002513,2]
[310108495,1704348640544,-2000.0,0.0002514,2]
[310108496,1704348640554,-3892.253729,0.0002515,2]
[310108497,1704348640563,-525.12671748,0.00026,2]
[310108499,1704348640575,-624.81839164,0.00026334,2]
[310108502,1704348640585,-167.0,0.00026568,2]
[310108504,1704348640594,-1490.24503498,0.00027435,2]
[310108505,1704348640603,-12409.83890776,0.000275,2]
[310108506,1704348640614,-151.0,0.000275,2]
[310108507,1704348640623,-200.632335,0.000275,2]
[310108508,1704348640633,-200.632335,0.000275,2]
[310108509,1704348640645,-151.0,0.00027614,2]
[310108510,1704348640655,-620.24091958,0.00027651,2]
[310108511,1704348640665,-344.36468707,0.00028,2]
[310108512,1704348640674,-212.3894497,0.00028,2]
[310108513,1704348640684,-155.27505373,0.00028161,2]
[310108515,1704348640694,-1756.34544613,0.0002861,2]
[310108517,1704348640703,-2076.65490248,0.0002861,2]
[310108518,1704348640712,-300.0,0.0002861,2]
[310108519,1704348640720,-154.87609912,0.0002861,2]
[310108520,1704348640729,-3125.50457669,0.0002861,2]
[310108521,1704348640738,-3002.87321176,0.0002861,2]
[310108523,1704348640747,-3265.7514171,0.000289,2]
[310108525,1704348640755,-829.71726879,0.00029,2]
[310108526,1704348640764,-150.8642222,0.00029194,30]
[310108528,1704348640773,-1321.08258665,0.000297,2]
[310108530,1704348640782,-150.8642222,0.00029789,7]
[310108532,1704348640791,-496.1966346,0.000298,5]
[310108533,1704348640801,-1490.24503498,0.0002985,2]
[310108535,1704348640811,-250.25,0.00029999,2]
[310108537,1704348640820,-250.25,0.00029999,2]
[310108539,1704348640829,-250.25,0.00029999,2]
[310108541,1704348640838,-250.25,0.00029999,2]
[310108543,1704348640848,-250.25,0.00029999,2]
[310108545,1704348640857,-250.25,0.00029999,2]
[310108547,1704348640866,-250.25,0.00029999,2]
[310108549,1704348640876,-250.25,0.00029999,2]
[310108551,1704348640885,-250.25,0.00029999,2]
[310108553,1704348640894,-92672.49918045,0.0003,2]
[310108555,1704348640904,-243.37606438,0.0003,4]
[310108557,1704348640913,-7027.47135002,0.0003,4]
[310108559,1704348640923,-446.68374029,0.0003,2]
[310108561,1704348640932,-154.87609912,0.0003,4]
[310108563,1704348640941,-1050.81855494,0.0003,4]
[310108564,1704348640950,-469.6691982,0.0003,3]
[310108566,1704348640959,-151.0,0.0003,2]
[310108568,1704348640970,-2000.0,0.0003,2]
[310108570,1704348640979,-200.632335,0.0003,2]
[310108572,1704348640988,-200.632335,0.0003,2]
[310108574,1704348640997,-289.0,0.0003,2]
[310108576,1704348641006,-2000.0,0.0003001,2]
[310108578,1704348641015,-2000.0,0.0003002,2]
[310108580,1704348641024,-2000.0,0.0003003,2]
[310108581,1704348641033,-2000.0,0.0003004,2]
[310108583,1704348641043,-2000.0,0.0003005,2]
[310108584,1704348641101,-2000.0,0.0003006,2]
[310108585,1704348641110,-200.632335,0.0003006,2]
[310108586,1704348641122,-200.632335,0.0003006,2]
[310108587,1704348641133,-2000.0,0.0003007,2]
[310108588,1704348641143,-2000.0,0.0003008,2]
[310108589,1704348641152,-2000.0,0.0003009,2]
[310108590,1704348641161,-2000.0,0.000301,2]
[310108591,1704348641170,-2000.0,0.0003011,2]
[310108592,1704348641179,-2000.0,0.0003012,2]
[310108593,1704348641188,-2000.0,0.0003013,2]
[310108594,1704348641198,-2000.0,0.0003014,2]
[310108595,1704348641208,-2000.0,0.0003015,2]
[310108596,1704348641219,-2000.0,0.0003016,2]
[310108597,1704348641230,-2000.0,0.0003017,2]
[310108598,1704348641240,-2000.0,0.0003018,2]
[310108599,1704348641249,-200.632335,0.0003018,2]
[310108600,1704348641260,-200.632329,0.0003018,2]
[310108601,1704348641269,-2000.0,0.0003019,2]
[310108602,1704348641278,-2000.0,0.000302,2]
[310108603,1704348641288,-2000.0,0.0003021,2]
[310108604,1704348641299,-2000.0,0.0003022,2]
[310108605,1704348641307,-2000.0,0.0003023,2]
[310108606,1704348641316,-2000.0,0.0003024,2]
[310108607,1704348641325,-2000.0,0.0003025,2]
[310108608,1704348641337,-2000.0,0.0003026,2]
[310108609,1704348641346,-1681.23916844,0.0003027,2]
[310108626,1704348641689,-509.25612575,0.00022694,3]
[310108628,1704348641702,-1166.57019196,0.00022694,3]
[310108717,1704348646566,-4236.77669572,0.00022694,3]
[310108719,1704348646626,-3010.52698657,0.00022694,3]
[310108721,1704348646636,-1935.59217056,0.0003027,2]
[310108723,1704348646644,-150.8642222,0.00030397,4]
[310108725,1704348646654,-223.19063326,0.00030596,4]
[310108727,1704348646663,-44.12318808,0.00031018,2]
[310108729,1704348646675,-106.74103412,0.00031018,2]
[310108730,1704348646684,-3529.86891462,0.00031797,15]
[310108736,1704349206669,1378.0,0.000251,7]
[310108737,1704349361026,154.87609912,0.00014467,2]
[310108738,1704349368966,172.64107636,0.00015975,2]
[310108739,1704349493987,171.28157279,0.00015977,2]
[310108740,1704349703577,5000.0,0.00015877,2]
[310108741,1704349712618,9501.20125173,0.00015877,2]
[310108742,1704349712650,15398.79874827,0.00015877,2]
[310108743,1704349724980,-154.87609912,0.00016066,2]
[310108744,1704349725010,-508.50377759,0.00016067,2]
[310108745,1704349725038,-30.59046444,0.00016067,2]
[310108746,1704349725071,-124.28563468,0.00016067,2]
[310108747,1704349725098,-261.41612566,0.00016075,2]
[310108748,1704349725135,-308.26858081,0.00016076,2]
[310108749,1704349725188,-526.0293135,0.00016076,2]
[310108750,1704349750038,-154.87609912,0.00016074,2]
[310108751,1704349750068,-154.96897834,0.00016074,2]
[310108752,1704349750097,-422.40466361,0.00016075,2]
[310108753,1704349750132,-86.09911398,0.00016075,2]
[310108754,1704349750162,-646.15062709,0.00016076,2]
[310108755,1704349750198,-209.07297958,0.00016076,2]
[310108758,1704349775125,-765.7211903,0.00016076,2]
[310108759,1704349775177,-765.7211903,0.00016076,2]
[310108760,1704349800517,-796.35003792,0.00016076,2]
[310108761,1704349800550,-796.35003792,0.00016076,2]
[310108762,1704349800598,-314.19397954,0.00016076,2]
[310108832,1704349831768,-6469.18633278,0.00016076,2]
[310108835,1704349831781,-467.09929999,0.00016076,2]
[310108837,1704349831794,-24714.89050929,0.00016076,2]
[310108839,1704349831803,-17305.16110467,0.00016077,2]
[310108841,1704349831812,-155.16870564,0.00016177,2]
[310108843,1704349831821,-958.78048825,0.00016177,2]
[310108845,1704349831831,-318.88330525,0.00018741,2]
[310108847,1704349831840,-174.6074496,0.00019178,2]
[310108849,1704349831848,-155.75848949,0.0002,2]
[310108851,1704349831858,-300.0,0.0002,2]
[310108853,1704349831868,-184.23847831,0.0002,2]
[310108855,1704349831878,-154.87609912,0.0002,2]
[310108857,1704349831890,-235.68021843,0.00020517,2]
[310108859,1704349831900,-2990.69030985,0.00020518,2]
[310108861,1704349831909,-676.09716813,0.00020519,2]
[310108863,1704349831918,-219.494942,0.00021191,2]
[310108865,1704349831927,-182.0285024,0.00021373,2]
[310108867,1704349831937,-244.64081,0.00021508,2]
[310108869,1704349831946,-166.666666,0.00021918,2]
[310108871,1704349831955,-166.666666,0.00022431,2]
[310108872,1704349831964,-166.666666,0.00022944,2]
[310108874,1704349831973,-508.50377759,0.00023455,2]
[310108876,1704349831983,-166.666666,0.00023456,2]
[310108878,1704349831993,-166.666666,0.00023969,2]
[310108880,1704349832003,-166.666666,0.00024482,2]
[310108882,1704349832013,-280.0,0.00024658,2]
[310108892,1704349832094,-5862.58,0.0002498,3]
[310108895,1704349832110,-4885.49,0.0002498,3]
[310108897,1704349832119,-154.87609912,0.00024988,2]
[310108899,1704349832128,-6808.16,0.0002499,3]
[310108901,1704349832137,-7035.1,0.0002499,3]
[310108903,1704349832147,-2583.46265883,0.00025,2]
[310108905,1704349832156,-4704.77366573,0.00025,2]
[310108907,1704349832165,-613.10329314,0.00025,2]
[310108909,1704349832174,-3000.0,0.00025,2]
[310108911,1704349832184,-2000.0,0.00025,2]
[310108913,1704349832193,-2000.0,0.0002501,2]
[310108915,1704349832202,-2000.0,0.0002502,2]
[310108917,1704349832211,-2000.0,0.0002503,2]
[310108919,1704349832219,-2000.0,0.0002504,2]
[310108920,1704349832229,-2000.0,0.0002505,2]
[310108923,1704349832238,-2000.0,0.0002506,2]
[310108925,1704349832248,-2000.0,0.0002507,2]
[310108926,1704349832257,-3827.902169,0.0002508,2]
[310108928,1704349832266,-1463.62120511,0.000251,2]
[310108930,1704349832275,-525.12671748,0.00026,2]
[310108932,1704349832285,-344.36468707,0.00028,2]
[310108934,1704349832294,-298.04900702,0.00029357,2]
[310108936,1704349832303,-9949.20288671,0.000294,2]
[310108938,1704349832316,-1444.14146515,0.000294,2]
[310108985,1704349837908,-154.87609912,0.00023454,2]
[310108987,1704349837917,-936.32789565,0.0002498,3]
[310108989,1704349837929,-3134.91210435,0.0002498,3]
[310108991,1704349837938,-8238.86430054,0.000294,2]
[310108993,1704349837947,-1911.24076514,0.00029457,2]
[310108995,1704349837956,-1321.08258665,0.000297,2]
[310108997,1704349837966,-496.1966346,0.000298,5]
[310108999,1704349837975,-7027.47135002,0.0003,4]
[310109001,1704349837984,-1050.81855494,0.0003,4]
[310109003,1704349837994,-192.0,0.0003,2]
[310109005,1704349838003,-298.04900699,0.00030281,2]
[310109007,1704349838013,-921.47103239,0.00031094,2]
[310109507,1704349843046,-1559.01092031,0.00031094,2]
[310109508,1704349843055,-7.17270256,0.00031179,2]
[310109805,1704349845733,-902.51458864,0.00031094,2]
[310111750,1704350987620,200.0,0.00023023,7]
[310111882,1704351038186,-154.87609912,0.00020921,2]
[310111883,1704351038195,-186.79545786,0.00020922,2]
[310111936,1704351041231,-86.42838483,0.00020922,2]
[310111937,1704351041241,-154.87609912,0.00020922,2]
[310111938,1704351041252,-178.30188411,0.00020922,2]
[310111940,1704351041262,-580.13228126,0.00020922,2]
[310111988,1704351368828,24900.0,0.00015302,2]
[310111989,1704351370029,262.41495019,0.00016299,7]
[310111994,1704351441558,2698.01438762,0.00016293,5]
[310111996,1704351569922,219.494942,0.00015415,2]
[310112014,1704351840965,250.0,0.00015167,2]
[310112016,1704352019554,219.494942,0.00015085,2]
[310112017,1704352073152,380.0,0.00015,2]
[310112036,1704352185633,-660.66844848,0.0001603,2]
[310112037,1704352185684,-368.57752564,0.0001603,2]
[310112038,1704352185712,-292.09092284,0.00016031,2]
[310112039,1704352185744,-270.23744588,0.00016031,2]
[310112040,1704352210840,-589.4484286,0.00016028,2]
[310112041,1704352210932,-692.49993534,0.00016028,2]